Workbook

Sheet Меню
D2: Примерное двухнедельное меню для общеобразовательных организаций Агрызского района 2020 - 2021 уч.год
B6: № Сборника рецептур | C6: Наименование блюд | H6: Выход | I6: Белки, г | J6: Жиры, г | K6: Углеводы, г | L6: Калорийность, ккал | M6: Витамин B1, мг | N6: Витамин С, мг | O6: Витамин А, мг | P6: Витамин Е, мг | Q6: Ca, мг | R6: P, мг | S6: Mg, мг | T6: Fe, мг
C7: 1-ая неделя
C8: 1 день
B9: 71/2015, Дели | C9: ПОМИДОРЫ СВЕЖИЕ | H9: 60 | I9: 0.660 | J9: 0.120 | K9: 2.280 | L9: 14 | M9: 0.036 | N9: 15.000 | O9: 0 | P9: 0.420 | Q9: 8.400 | R9: 15.600 | S9: 12.000 | T9: 0.540
B10: 282 | C10: КОТЛЕТЫ (БИТОЧКИ,ШНИЦЕЛИ) РУБЛЕННЫЕ ИЗ ГОВЯДИНЫ | H10: 80 | I10: 8.200 | J10: 9.900 | K10: 10.210 | L10: 151 | M10: 0.050 | N10: 0.050 | O10: 2.080 | P10: 2.510 | Q10: 27.800 | R10: 112.100 | S10: 22.100 | T10: 1.150
B11: 186 | C11: КАША ГРЕЧНЕВАЯ РАССЫПЧАТАЯ С МАСЛОМ | H11: 150/5 | I11: 3.600 | J11: 7.000 | K11: 29.000 | L11: 193 | M11: 0.292 | N11: 0 | O11: 41.000 | P11: 0.518 | Q11: 27.352 | R11: 180.553 | S11: 104.550 | T11: 3.501
B12: 397 | C12: КАКАО С МОЛОКОМ | H12: 200 | I12: 4.200 | J12: 3.600 | K12: 17.280 | L12: 119 | M12: 0.050 | N12: 1.600 | O12: 0.03 | P12: 0.000 | Q12: 152.900 | R12: 128.000 | S12: 22.300 | T12: 0.550
C13: ХЛЕБ СЕЛЬСКИЙ 1 сорт | H13: 20 | I13: 1.3 | J13: 0.2 | K13: 7 | L13: 35 | M13: 0.02 | N13: 0 | O13: 0 | P13: 0.2 | Q13: 4.7 | R13: 21.1 | S13: 6.3 | T13: 0.52
C14: ХЛЕБ БЕЛЫЙ 1 сорт | H14: 30 | I14: 2.280 | J14: 0.240 | K14: 14.760 | L14: 71 | M14: 0.033 | N14: 0 | O14: - | P14: 0.330 | Q14: 6.000 | R14: 19.500 | S14: 4.200 | T14: 0.330
C15: Итого: | I15: =SUM(I18:I23) -> 75.042 | J15: 50.889 | K15: 218.770 | L15: 1636.950 | M15: 0.910 | N15: 42.120 | O15: 21.150 | P15: 2.643 | Q15: 501.112 | R15: 1003.420 | S15: 235.708 | T15: 9.815
C16: 2 день
B17: 338/2015, ДеЛи | C17: ФРУКТЫ (ЯБЛОКИ) | H17: 110 | I17: 0.330 | J17: 0.440 | K17: 9.460 | L17: 44 | M17: 0.033 | N17: 11.000 | O17: - | P17: 0.220 | Q17: 17.600 | R17: 12.100 | S17: 9.900 | T17: 2.420
B18: 71/2015, Дели | C18: ОГУРЦЫ СВЕЖИЕ | H18: 60 | I18: 0.420 | J18: 0.060 | K18: 1.140 | L18: 7 | M18: 0.018 | N18: 4.200 | O18: 0 | P18: 0.060 | Q18: 10.200 | R18: 18.000 | S18: 8.400 | T18: 0.300
B19: 304 | C19: ПЛОВ ИЗ ПТИЦЫ | H19: 210 | I19: 21.470 | J19: 19.690 | K19: 35.690 | L19: 406 | M19: 0.260 | N19: 1.010 | O19: 0.060 | P19: 0.000 | Q19: 40.300 | R19: 209.500 | S19: 46.800 | T19: 2.030
B20: 395 | C20: КОФЕЙНЫЙ НАПИТОК С МОЛОКОМ | H20: 200 | I20: 3.120 | J20: 2.600 | K20: 14.170 | L20: 93 | M20: 0 | N20: 1.300 | O20: 0.01 | P20: 0 | Q20: 125.700 | R20: 90.000 | S20: 14.000 | T20: 0.130
C21: ХЛЕБ СЕЛЬСКИЙ 1 сорт | H21: 20 | I21: 1.3 | J21: 0.2 | K21: 7 | L21: 35 | M21: 0.02 | N21: 0 | O21: 0 | P21: 0.2 | Q21: 4.7 | R21: 21.1 | S21: 6.3 | T21: 0.52
C22: ХЛЕБ БЕЛЫЙ 1 сорт | H22: 30 | I22: 2.280 | J22: 0.240 | K22: 14.760 | L22: 71 | M22: 0.033 | N22: - | O22: - | P22: 0.330 | Q22: 6.000 | R22: 19.500 | S22: 4.200 | T22: 0.330
C23: Итого: | I23: =SUM(I26:I31) -> 46.45 | J23: 28.10 | K23: 146.01 | L23: 1024.65 | M23: 0.54 | N23: 35.61 | O23: 21.08 | P23: 2.05 | Q23: 314.21 | R23: 645.32 | S23: 156.01 | T23: 6.51
C24: 3 день
B25: 20 | C25: САЛАТ ИЗ БЕЛОКОЧАННОЙ КАПУСТЫ | H25: 100 | I25: 1.400 | J25: 5.000 | K25: 9.000 | L25: 87 | M25: 0.020 | N25: 32.400 | O25: - | P25: 0.000 | Q25: 37.300 | R25: 27.600 | S25: 15.100 | T25: 0.500
B26: 277 | C26: ГУЛЯШ ИЗ ГОВЯДИНЫ | H26: 50/50 | I26: 12.850 | J26: 10.340 | K26: 3.300 | L26: 158 | M26: 0.030 | N26: 4.680 | O26: 0.01 | P26: 0.000 | Q26: 24.300 | R26: 103.500 | S26: 22.600 | T26: 0.960
B27: 317 | C27: МАКАРОНЫ ОТВАРНЫЕ | H27: 150 | I27: 5.652 | J27: 4.469 | K27: 28.000 | L27: 175 | M27: 0.087 | N27: - | O27: 21.000 | P27: 0.818 | Q27: 16.470 | R27: 47.070 | S27: 8.490 | T27: 0.870
B28: 392 | C28: ЧАЙ С САХАРОМ | H28: 200/15 | I28: 0.200 | K28: 13.70 | L28: 56 | M28: 0.008 | N28: 3.750 | O28: - | P28: 0.075 | Q28: 9.970 | R28: 7.500 | S28: 6.500 | T28: 0.197
C29: ХЛЕБ СЕЛЬСКИЙ 1 сорт | H29: 20 | I29: 1.3 | J29: 0.2 | K29: 7 | L29: 35 | M29: 0.02 | N29: 0 | O29: 0 | P29: 0.2 | Q29: 4.7 | R29: 21.1 | S29: 6.3 | T29: 0.52
C30: ХЛЕБ БЕЛЫЙ 1 сорт | H30: 30 | I30: 2.280 | J30: 0.240 | K30: 14.760 | L30: 71 | M30: 0.033 | N30: - | O30: - | P30: 0.330 | Q30: 6.000 | R30: 19.500 | S30: 4.200 | T30: 0.330
C31: Итого: | I31: =SUM(I34:I39) -> 24.170 | J31: 12.850 | K31: 79.250 | L31: 530.150 | M31: 0.361 | N31: 27.180 | O31: 0.070 | P31: 0.630 | Q31: 252.772 | R31: 446.650 | S31: 107.918 | T31: 3.628
C32: 4 день
B33: 338/2015, ДеЛи | C33: ФРУКТЫ (ГРУШИ) | H33: 100 | I33: 0.400 | J33: 0.300 | K33: 10.300 | L33: 47 | M33: 0.020 | N33: 5.000 | O33: - | P33: 0.400 | Q33: 19.000 | R33: 16.000 | S33: 12.000 | T33: 2.300
B34: 41 | C34: САЛАТ ИЗ МОРКОВИ | H34: 100 | I34: 1.250 | J34: 0.090 | K34: 11.600 | L34: 52 | M34: 0.058 | N34: 4.800 | O34: 0 | P34: 0.000 | Q34: 13.302 | R34: 26.850 | S34: 18.468 | T34: 0.358
B35: 358 | C35: ШНИЦЕЛЬ РЫБНЫЙ НАТУРАЛЬНЫЙ | H35: 80 | I35: 12.080 | J35: 3.920 | K35: 8.210 | L35: 116 | M35: 0.080 | N35: 2.620 | O35: 0.010 | P35: 0.000 | Q35: 38.900 | R35: 164.600 | S35: 28.900 | T35: 0.870
B36: 321 | C36: ПЮРЕ КАРТОФЕЛЬНОЕ | H36: 150 | I36: 3.060 | J36: 4.800 | K36: 20.400 | L36: 137 | M36: 0.120 | N36: 18.160 | O36: 0.030 | P36: 0.100 | Q36: 36.970 | R36: 86.600 | S36: 27.750 | T36: 1.000
B37: 397 | C37: КАКАО С МОЛОКОМ | H37: 200 | I37: 4.200 | J37: 3.600 | K37: 17.280 | L37: 119 | M37: 0.050 | N37: 1.600 | O37: 0.03 | P37: 0.000 | Q37: 152.900 | R37: 128.000 | S37: 22.300 | T37: 0.550
C38: ХЛЕБ СЕЛЬСКИЙ 1 сорт | H38: 20 | I38: 1.3 | J38: 0.2 | K38: 7 | L38: 35 | M38: 0.02 | N38: 0 | O38: 0 | P38: 0.2 | Q38: 4.7 | R38: 21.1 | S38: 6.3 | T38: 0.52
C39: ХЛЕБ БЕЛЫЙ 1 сорт | H39: 30 | I39: 2.280 | J39: 0.240 | K39: 14.760 | L39: 71 | M39: 0.033 | N39: - | O39: - | P39: 0.330 | Q39: 6.000 | R39: 19.500 | S39: 4.200 | T39: 0.330
C40: Итого: | I40: =SUM(I42:I48) -> 20.960 | J40: 19.610 | K40: 97.540 | L40: 653.700 | M40: 0.227 | N40: 27.790 | O40: 0.071 | P40: 1.180 | Q40: 76.020 | R40: 258.040 | S40: 73.130 | T40: 5.890
C41: 5 день
B42: 338/2015, ДеЛи | C42: ФРУКТЫ (ЯБЛОКИ) | H42: 110 | I42: 0.330 | J42: 0.440 | K42: 9.460 | L42: 44 | M42: 0.033 | N42: 11.000 | O42: - | P42: 0.220 | Q42: 17.600 | R42: 12.100 | S42: 9.900 | T42: 2.420
B43: 71/2015, Дели | C43: ПОМИДОРЫ СВЕЖИЕ | H43: 60 | I43: 0.660 | J43: 0.120 | K43: 2.280 | L43: 14 | M43: 0.036 | N43: 15.000 | O43: 0 | P43: 0.420 | Q43: 8.400 | R43: 15.600 | S43: 12.000 | T43: 0.540
B44: 305 | C44: КОТЛЕТЫ РУБЛЕННЫЕ ИЗ ПТИЦЫ | H44: 80 | I44: 12.640 | J44: 13.140 | K44: 13.460 | L44: 223 | M44: 0.080 | N44: 0.670 | O44: 0.050 | P44: 0.000 | Q44: 35.100 | R44: 127.800 | S44: 21.000 | T44: 1.470
B45: 315 | C45: РИС ОТВАРНОЙ | H45: 150 | I45: 3.650 | J45: 5.370 | K45: 36.680 | L45: 210 | M45: 0.025 | N45: 0 | O45: 0.021 | P45: 0.000 | Q45: 1.360 | R45: 60.600 | S45: 19.000 | T45: 0.530
B46: 377 Тутельян | C46: ЧАЙ С ЛИМОНОМ | H46: 200/15/7 | I46: 0.100 | J46: 0.100 | K46: 13.900 | L46: 57 | M46: 0.000 | N46: 1.120 | O46: 0 | P46: 0.010 | Q46: 2.860 | R46: 1.340 | S46: 0.730 | T46: 0.080
C47: ХЛЕБ СЕЛЬСКИЙ 1 сорт | H47: 20 | I47: 1.3 | J47: 0.2 | K47: 7 | L47: 35 | M47: 0.02 | N47: 0 | O47: 0 | P47: 0.2 | Q47: 4.7 | R47: 21.1 | S47: 6.3 | T47: 0.52
C48: ХЛЕБ БЕЛЫЙ 1 сорт | H48: 30 | I48: 2.280 | J48: 0.240 | K48: 14.760 | L48: 71 | M48: 0.033 | N48: - | O48: - | P48: 0.330 | Q48: 6.000 | R48: 19.500 | S48: 4.200 | T48: 0.330
C49: Итого: | I49: =SUM(I51:I57) -> 18.588 | J49: 18.659 | K49: 82.590 | L49: 562.380 | M49: 0.245 | N49: 19.500 | O49: 23.080 | P49: 4.133 | Q49: 94.050 | R49: 242.850 | S49: 64.570 | T49: 5.609
C50: 6 день
B51: 338/2015Дели | C51: ФРУКТЫ (МАНДАРИНЫ) | H51: 100 | I51: 0.500 | J51: 0.200 | K51: 7.500 | L51: 34 | M51: 0.030 | N51: 10.000 | O51: 0 | P51: 0.200 | Q51: 16.000 | R51: 11.000 | S51: 9.000 | T51: 2.200
B52: 13 | C52: САЛАТ ИЖ СВЕЖИХ ОГУРЦОВ С МАСЛОМ | H52: 60 | I52: 0.456 | J52: 3.650 | K52: 1.420 | L52: 40 | M52: 0.017 | N52: 5.700 | O52: 0 | P52: 0.000 | Q52: 13.110 | R52: 24.580 | S52: 7.980 | T52: 0.342
B53: 282 | C53: КОТЛЕТЫ (БИТОЧКИ,ШНИЦЕЛИ) РУБЛЕННЫЕ ИЗ ГОВЯДИНЫ | H53: 80 | I53: 8.200 | J53: 9.900 | K53: 10.210 | L53: 151 | M53: 0.050 | N53: 0.050 | O53: 2.080 | P53: 2.510 | Q53: 27.800 | R53: 112.100 | S53: 22.100 | T53: 1.150
B54: 317 | C54: МАКАРОНЫ ОТВАРНЫЕ | H54: 150 | I54: 5.652 | J54: 4.469 | K54: 28.000 | L54: 175 | M54: 0.087 | N54: - | O54: 21.000 | P54: 0.818 | Q54: 16.470 | R54: 47.070 | S54: 8.490 | T54: 0.870
B55: 685/2004Сбшк | C55: ЧАЙ С САХАРОМ | H55: 200/15 | I55: 0.200 | K55: 13.70 | L55: 56 | M55: 0.008 | N55: 3.750 | O55: - | P55: 0.075 | Q55: 9.970 | R55: 7.500 | S55: 6.500 | T55: 0.197
C56: ХЛЕБ СЕЛЬСКИЙ 1 сорт | H56: 20 | I56: 1.3 | J56: 0.2 | K56: 7 | L56: 35 | M56: 0.02 | N56: 0 | O56: 0 | P56: 0.2 | Q56: 4.7 | R56: 21.1 | S56: 6.3 | T56: 0.52
C57: ХЛЕБ БЕЛЫЙ 1 сорт | H57: 30 | I57: 2.280 | J57: 0.240 | K57: 14.760 | L57: 71 | M57: 0.033 | N57: - | O57: - | P57: 0.330 | Q57: 6.000 | R57: 19.500 | S57: 4.200 | T57: 0.330
C58: Итого: | I58: =SUM(I60:I66) -> 1.350 | J58: 0.300 | K58: 12.150 | L58: 57.000 | M58: 0.060 | N58: 90.000 | O58: 0.000 | P58: 0.300 | Q58: 51.000 | R58: 34.500 | S58: 19.500 | T58: 0.450
B63: № Сборника рецептур | C63: Наименование блюд | H63: Выход | I63: Белки, г | J63: Жиры, г | K63: Углеводы, г | L63: Калорийность, ккал | M63: Витамин B1, мг | N63: Витамин С, мг | O63: Витамин А, мг | P63: Витамин Е, мг | Q63: Ca, мг | R63: P, мг | S63: Mg, мг | T63: Fe, мг
C64: 2-ая неделя
C65: 1 день
B66: 338/2015Дели | C66: ФРУКТЫ (АПЕЛЬСИНЫ) | H66: 150 | I66: 1.350 | J66: 0.300 | K66: 12.150 | L66: 57 | M66: 0.060 | N66: 90.000 | P66: 0.300 | Q66: 51.000 | R66: 34.500 | S66: 19.500 | T66: 0.450
B67: 71/2015, Дели | C67: ОГУРЦЫ СВЕЖИЕ | H67: 60 | I67: 0.420 | J67: 0.060 | K67: 1.140 | L67: 7 | M67: 0.018 | N67: 4.200 | O67: 0 | P67: 0.060 | Q67: 10.200 | R67: 18.000 | S67: 8.400 | T67: 0.300
B68: 256 Тутельян | C68: МЯСО ТУШЕНОЕ | H68: 100 | I68: 12.000 | J68: 15.000 | K68: 3.000 | L68: 215 | M68: 0.000 | N68: 1.000 | O68: 42 | P68: 0.000 | Q68: 12.000 | R68: 176.000 | S68: 17.000 | T68: 2.000
B69: 186 | C69: КАША ГРЕЧНЕВАЯ РАССЫПЧАТАЯ С МАСЛОМ | H69: 150/5 | I69: 3.600 | J69: 7.000 | K69: 29.000 | L69: 193 | M69: 0.292 | N69: 0 | O69: 41.000 | P69: 0.518 | Q69: 27.352 | R69: 180.553 | S69: 104.550 | T69: 3.501
B70: 397 | C70: КАКАО С МОЛОКОМ | H70: 200 | I70: 4.200 | J70: 3.600 | K70: 17.280 | L70: 119 | M70: 0.050 | N70: 1.600 | O70: 0.03 | P70: 0.000 | Q70: 152.900 | R70: 128.000 | S70: 22.300 | T70: 0.550
C71: ХЛЕБ БЕЛЫЙ 1 сорт | H71: 30 | I71: 2.280 | J71: 0.240 | K71: 14.760 | L71: 71 | M71: 0.033 | N71: 1.600 | O71: 0.03 | P71: 0.000 | Q71: 6.000 | R71: 19.500 | S71: 4.200 | T71: 0.330
C72: ХЛЕБ СЕЛЬСКИЙ | H72: 20 | I72: 1.3 | J72: 0.2 | K72: 7 | L72: 35 | M72: 0.02 | N72: 0 | O72: 0 | P72: 0.2 | Q72: 4.7 | R72: 21.1 | S72: 6.3 | T72: 0.52
C73: Итого: | I73: =SUM(I75:I81) -> 44.730 | J73: 29.510 | K73: 137.700 | L73: 998.250 | M73: 0.610 | N73: 44.860 | O73: 0.160 | P73: 1.005 | Q73: 158.800 | R73: 566.340 | S73: 143.680 | T73: 6.417
C74: 2 день
B75: 71/2015, Дели | C75: ПОМИДОРЫ СВЕЖИЕ | H75: 60 | I75: 0.660 | J75: 0.120 | K75: 2.280 | L75: 14 | M75: 0.036 | N75: 15.000 | O75: 0 | P75: 0.420 | Q75: 8.400 | R75: 15.600 | S75: 12.000 | T75: 0.540
B76: 304 | C76: ПЛОВ ИЗ ПТИЦЫ | H76: 210 | I76: 21.470 | J76: 19.690 | K76: 35.690 | L76: 406 | M76: 0.260 | N76: 1.010 | O76: 0.060 | P76: 0.000 | Q76: 40.300 | R76: 209.500 | S76: 46.800 | T76: 2.030
B77: 377 Тутельян | C77: ЧАЙ С ЛИМОНОМ | H77: 200/15/7 | I77: 0.100 | J77: 0.100 | K77: 13.900 | L77: 57 | M77: 0.000 | N77: 1.120 | O77: 0 | P77: 0.010 | Q77: 2.860 | R77: 1.340 | S77: 0.730 | T77: 0.080
C78: ХЛЕБ БЕЛЫЙ 1 сорт | H78: 30 | I78: 2.280 | J78: 0.240 | K78: 14.760 | L78: 71 | M78: 0.033 | N78: 1.600 | O78: 0.03 | P78: 0.000 | Q78: 6.000 | R78: 19.500 | S78: 4.200 | T78: 0.330
C79: ХЛЕБ СЕЛЬСКИЙ | H79: 20 | I79: 1.3 | J79: 0.2 | K79: 7 | L79: 35 | M79: 0.02 | N79: 0 | O79: 0 | P79: 0.2 | Q79: 4.7 | R79: 21.1 | S79: 6.3 | T79: 0.52
C80: Итого: | I80: =SUM(I84:I88) -> 18.92 | J80: 9.16 | K80: 64.07 | L80: 415.25 | M80: 0.26 | N80: 26.13 | O80: 0.07 | P80: 0.38 | Q80: 96.54 | R80: 299.30 | S80: 73.65 | T80: 2.92
C81: 3 день
B82: 338/2015, ДеЛи | C82: ФРУКТЫ (ГРУШИ) | H82: 100 | I82: 0.400 | J82: 0.300 | K82: 10.300 | L82: 47 | M82: 0.020 | N82: 5.000 | O82: - | P82: 0.400 | Q82: 19.000 | R82: 16.000 | S82: 12.000 | T82: 2.300
B83: 20 | C83: САЛАТ ИЗ БЕЛОКОЧАННОЙ КАПУСТЫ | H83: 100 | I83: 1.400 | J83: 5.000 | K83: 9.000 | L83: 87 | M83: 0.020 | N83: 32.400 | O83: - | P83: 0.000 | Q83: 37.300 | R83: 27.600 | S83: 15.100 | T83: 0.500
B84: 358 | C84: ШНИЦЕЛЬ РЫБНЫЙ НАТУРАЛЬНЫЙ | H84: 80 | I84: 12.080 | J84: 3.920 | K84: 8.210 | L84: 116 | M84: 0.080 | N84: 2.620 | O84: 0.010 | P84: 0.000 | Q84: 38.900 | R84: 164.600 | S84: 28.900 | T84: 0.870
B85: 321 | C85: ПЮРЕ КАРТОФЕЛЬНОЕ | H85: 150 | I85: 3.060 | J85: 4.800 | K85: 20.400 | L85: 137 | M85: 0.120 | N85: 18.160 | O85: 0.030 | P85: 0.100 | Q85: 36.970 | R85: 86.600 | S85: 27.750 | T85: 1.000
B86: 685/2004Сбшк | C86: ЧАЙ С САХАРОМ | H86: 200/15 | I86: 0.200 | K86: 13.70 | L86: 56 | M86: 0.008 | N86: 3.750 | O86: - | P86: 0.075 | Q86: 9.970 | R86: 7.500 | S86: 6.500 | T86: 0.197
C87: ХЛЕБ БЕЛЫЙ 1 сорт | H87: 30 | I87: 2.280 | J87: 0.240 | K87: 14.760 | L87: 71 | M87: 0.033 | N87: 1.600 | O87: 0.03 | P87: 0.000 | Q87: 6.000 | R87: 19.500 | S87: 4.200 | T87: 0.330
C88: ХЛЕБ СЕЛЬСКИЙ | H88: 20 | I88: 1.3 | J88: 0.2 | K88: 7 | L88: 35 | M88: 0.02 | N88: 0 | O88: 0 | P88: 0.2 | Q88: 4.7 | R88: 21.1 | S88: 6.3 | T88: 0.52
C89: Итого: | I89: =SUM(I91:I97) -> 22.07 | J89: 17.08 | K89: 95.29 | L89: 625.60 | M89: 0.32 | N89: 19.15 | O89: 21.08 | P89: 1.24 | Q89: 209.57 | R89: 307.32 | S89: 79.36 | T89: 5.37
C90: 4 день
B91: 338/2015, ДеЛи | C91: ФРУКТЫ (ЯБЛОКИ) | H91: 110 | I91: 0.330 | J91: 0.440 | K91: 9.460 | L91: 44 | M91: 0.033 | N91: 11.000 | O91: - | P91: 0.220 | Q91: 17.600 | R91: 12.100 | S91: 9.900 | T91: 2.420
B92: 41 | C92: САЛАТ ИЗ МОРКОВИ | H92: 100 | I92: 1.250 | J92: 0.090 | K92: 11.600 | L92: 52 | M92: 0.058 | N92: 4.800 | O92: 0 | P92: 0.000 | Q92: 13.302 | R92: 26.850 | S92: 18.468 | T92: 0.358
B93: 287 | C93: ТЕФТЕЛИ МЯСНЫЕ | H93: 60/60 | I93: 8.140 | J93: 9.040 | K93: 10.300 | L93: 155 | M93: 0.050 | N93: 0.450 | O93: 0.040 | P93: 0.000 | Q93: 25.800 | R93: 90.700 | S93: 18.000 | T93: 0.740
B94: 317 | C94: МАКАРОНЫ ОТВАРНЫЕ | H94: 150 | I94: 5.652 | J94: 4.469 | K94: 28.000 | L94: 175 | M94: 0.087 | N94: - | O94: 21.000 | P94: 0.818 | Q94: 16.470 | R94: 47.070 | S94: 8.490 | T94: 0.870
B95: 395 | C95: КОФЕЙНЫЙ НАПИТОК С МОЛОКОМ | H95: 200 | I95: 3.120 | J95: 2.600 | K95: 14.170 | L95: 93 | M95: 0 | N95: 1.300 | O95: 0.01 | P95: 0 | Q95: 125.700 | R95: 90.000 | S95: 14.000 | T95: 0.130
C96: ХЛЕБ БЕЛЫЙ 1 сорт | H96: 30 | I96: 2.280 | J96: 0.240 | K96: 14.760 | L96: 71 | M96: 0.033 | N96: 1.600 | O96: 0.03 | P96: 0.000 | Q96: 6.000 | R96: 19.500 | S96: 4.200 | T96: 0.330
C97: ХЛЕБ СЕЛЬСКИЙ | H97: 20 | I97: 1.3 | J97: 0.2 | K97: 7 | L97: 35 | M97: 0.02 | N97: 0 | O97: 0 | P97: 0.2 | Q97: 4.7 | R97: 21.1 | S97: 6.3 | T97: 0.52
C98: Итого: | I98: =SUM(I99:I106) -> 38.970 | J98: 28.730 | K98: 189.220 | L98: 1175.290 | M98: 0.662 | N98: 29.520 | O98: 0.121 | P98: 1.105 | Q98: 126.400 | R98: 576.830 | S98: 195.070 | T98: 8.407
C99: 5 день
B100: 338/2015Дели | C100: ФРУКТЫ (БАНАНЫ) | H100: 150 | I100: 2.250 | J100: 0.750 | K100: 31.500 | L100: 144 | M100: 0.060 | N100: 11.000 | O100: - | P100: 0.220 | Q100: 12.000 | R100: 42.000 | S100: 63.000 | T100: 0.900
B101: 13 | C101: СВЕКЛА ОТВАРНАЯ (ДОЛЬКАМИ) С МАСЛОМ | H101: 60 | I101: 0.850 | J101: 3.650 | K101: 5.000 | L101: 56 | M101: 0.010 | N101: 5.700 | O101: 0 | P101: 0.000 | Q101: 21.090 | R101: 24.580 | S101: 12.540 | T101: 0.800
B102: 291 | C102: ЗАПЕКАНКА КАРТОФЕЛЬНАЯ С МЯСОМ, МАСЛОМ | H102: 200 | I102: 15.160 | J102: 11.880 | K102: 32.120 | L102: 296 | M102: 0.213 | N102: 4.750 | O102: 0.040 | P102: 0.000 | Q102: 31.000 | R102: 213.370 | S102: 56.500 | T102: 2.280
B103: 377 Тутельян | C103: ЧАЙ С ЛИМОНОМ | H103: 200/15/7 | I103: 0.100 | J103: 0.100 | K103: 13.900 | L103: 57 | M103: 0.000 | N103: 1.120 | O103: 0 | P103: 0.010 | Q103: 2.860 | R103: 1.340 | S103: 0.730 | T103: 0.080
C104: ХЛЕБ БЕЛЫЙ 1 сорт | H104: 30 | I104: 2.280 | J104: 0.240 | K104: 14.760 | L104: 71 | M104: 0.033 | N104: 1.600 | O104: 0.03 | P104: 0.000 | Q104: 6.000 | R104: 19.500 | S104: 4.200 | T104: 0.330
C105: ХЛЕБ СЕЛЬСКИЙ | H105: 20 | I105: 1.3 | J105: 0.2 | K105: 7 | L105: 35 | M105: 0.02 | N105: 0 | O105: 0 | P105: 0.2 | Q105: 4.7 | R105: 21.1 | S105: 6.3 | T105: 0.52
C106: Итого: | I106: =SUM(I109:I114) -> 17.030 | J106: 11.910 | K106: 84.940 | L106: 515.700 | M106: 0.326 | N106: 5.350 | O106: 0.051 | P106: 0.675 | Q106: 48.750 | R106: 254.940 | S106: 51.800 | T106: 3.497
C107: 6 день
B108: 13 | C108: САЛАТ ИЖ СВЕЖИХ ОГУРЦОВ С МАСЛОМ | H108: 60 | I108: 0.456 | J108: 3.650 | K108: 1.420 | L108: 40 | M108: 0.017 | N108: 5.700 | O108: 0 | P108: 0.000 | Q108: 13.110 | R108: 24.580 | S108: 7.980 | T108: 0.342
B109: 234/2015 ДеЛи | C109: СОСИСКИ ОТВАРНЫЕ | H109: 80 | I109: 9.600 | J109: 6.100 | K109: 12.800 | L109: 144 | M109: 0.240 | N109: 0.000 | O109: 0.000 | P109: 0.400 | Q109: 26.720 | R109: 146.240 | S109: 15.800 | T109: 1.920
B110: 315 | C110: РИС ОТВАРНОЙ | H110: 150 | I110: 3.650 | J110: 5.370 | K110: 36.680 | L110: 210 | M110: 0.025 | N110: 0 | O110: 0.021 | P110: 0.000 | Q110: 1.360 | R110: 60.600 | S110: 19.000 | T110: 0.530
B111: 685/2004Сбшк | C111: ЧАЙ С САХАРОМ | H111: 200/15 | I111: 0.200 | K111: 13.70 | L111: 56 | M111: 0.008 | N111: 3.750 | O111: - | P111: 0.075 | Q111: 9.970 | R111: 7.500 | S111: 6.500 | T111: 0.197
C112: ХЛЕБ БЕЛЫЙ 1 сорт | H112: 30 | I112: 2.280 | J112: 0.240 | K112: 14.760 | L112: 71 | M112: 0.033 | N112: 1.600 | O112: 0.03 | P112: 0.000 | Q112: 6.000 | R112: 19.500 | S112: 4.200 | T112: 0.330
C113: ХЛЕБ СЕЛЬСКИЙ | H113: 20 | I113: 1.3 | J113: 0.2 | K113: 7 | L113: 35 | M113: 0.02 | N113: 0 | O113: 0 | P113: 0.2 | Q113: 4.7 | R113: 21.1 | S113: 6.3 | T113: 0.52
C114: Итого: | I114: =SUM(I117:I122) -> 0.000 | J114: 0.000 | K114: 0.000 | L114: 0.000 | M114: 0.000 | N114: 0.000 | O114: 0.000 | P114: 0.000 | Q114: 0.000 | R114: 0.000 | S114: 0.000 | T114: 0.000
A117: Примечание: при составлении меню использованы
A118: 1. Сборник Технологических нормативов - Сборник рецептур блюд и кулинарныъх изделий для питания детей в дошкольных организациях / Под ред. М.П.Могильного и В.А. Тутельяна - М.: ДеЛи принт,2011
A119: 2. Сборник Технологических нормативов, рецептур блюд и кулинарных изделий для питания детей для дошкольных образовательных учреждений, Л.С. Коровка, Пермь 2001

Sheet Меню-требование (hidden)
A1: Накопительная ведомость | F1: Утверждаю: | M1: Накопительная ведомость | R1: Утверждаю: | Y1: Накопительная ведомость | AD1: Утверждаю: | AK1: Накопительная ведомость | AP1: Утверждаю: | AW1: Накопительная ведомость | BB1: Утверждаю: | BI1: Накопительная ведомость | BN1: Утверждаю:
A2: на выдачу продуктов питания | E2: Руководитель учреждения ______________________________ | M2: на выдачу продуктов питания | Q2: Руководитель учреждения ______________________________ | Y2: на выдачу продуктов питания | AC2: Руководитель учреждения ______________________________ | AK2: на выдачу продуктов питания | AO2: Руководитель учреждения ______________________________ | AW2: на выдачу продуктов питания | BA2: Руководитель учреждения ______________________________ | BI2: на выдачу продуктов питания | BM2: Руководитель учреждения ______________________________
E3: на 1 день, на 1 человека | Q3: на 2 день, на 1 человека | AC3: на 3 день, на 1 человека | AO3: на 4 день, на 1 человека | BA3: на 5 день, на 1 человека | BM3: на 6 день, на 1 человека
A5: МЕНЮ | B5: количество продуктов питания подлежащих закладке | K5: итого | M5: МЕНЮ | N5: количество продуктов питания подлежащих закладке | W5: итого | Y5: МЕНЮ | Z5: количество продуктов питания подлежащих закладке | AI5: итого | AK5: МЕНЮ | AL5: количество продуктов питания подлежащих закладке | AU5: итого | AW5: МЕНЮ | AX5: количество продуктов питания подлежащих закладке | BG5: итого | BI5: МЕНЮ | BJ5: количество продуктов питания подлежащих закладке | BS5: итого | BU5: итого за 1 неделю
B6: помидор | D6: котлеты (биточ,шницели) | E6: каша гречнев | F6: какао с мол | G6: хлеб | N6: фрукты | O6: огурцы свеж | P6: плов из птицы | R6: кофейн напиток | S6: хлеб | Z6: салат из капусты | AB6: гуляш из говяд | AC6: макароны отвар | AD6: чай с сахаром | AE6: хлеб | AL6: салат из моркови | AM6: шницель рыбный | AN6: картоф. пюре | AO6: какао с мол | AP6: хлеб | AQ6: фрукты | AX6: фрукты | AY6: помидоры | AZ6: котлеты из кур | BA6: рис отварной | BB6: чай с сах.лим | BC6: хлеб | BJ6: фрукты | BK6: салат их св.огур | BL6: котлеты (биточ,шницели) | BM6: макароны отвар | BN6: чай с сахаром | BO6: хлеб
A7: мясо | D7: 80 | K7: =SUM(B7:J7) -> 80 | M7: мясо | W7: =SUM(N7:V7) -> 0 | Y7: мясо | AB7: 110 | AI7: =SUM(Z7:AH7) -> 110 | AK7: мясо | AU7: =SUM(AL7:AT7) -> 0 | AW7: мясо | BG7: =SUM(AX7:BF7) -> 0 | BI7: мясо | BL7: 80 | BS7: =SUM(BJ7:BR7) -> 80 | BU7: мясо | BV7: =K7+W7+AI7+AU7+BG7+BS7 -> 270
A8: колбасные изделия | K8: 0 | M8: колбасные изделия | W8: 0 | Y8: колбасные изделия | AI8: 0 | AK8: колбасные изделия | AU8: 0 | AW8: колбасные изделия | BG8: 0 | BI8: колбасные изделия | BS8: 0 | BU8: колбасные изделия | BV8: 0
A9: рыба свежая | K9: 0 | M9: рыба свежая | W9: 0 | Y9: рыба свежая | AI9: 0 | AK9: рыба свежая | AM9: 98.5 | AU9: 98.5 | AW9: рыба свежая | BG9: 0 | BI9: рыба свежая | BS9: 0 | BU9: рыба свежая | BV9: 98.5
A10: масло сливочное | D10: 5 | E10: 5 | K10: 10 | M10: масло сливочное | W10: 0 | Y10: масло сливочное | AB10: 3.3 | AC10: 5 | AI10: 8.3 | AK10: масло сливочное | AN10: 5 | AU10: 5 | AW10: масло сливочное | AZ10: 3 | BA10: 6.7 | BG10: 9.7 | BI10: масло сливочное | BL10: 5 | BM10: 5 | BS10: 10 | BU10: масло сливочное | BV10: 43
A11: масло растительное | K11: 0 | M11: масло растительное | P11: 8 | W11: 8 | Y11: масло растительное | Z11: 5 | AI11: 5 | AK11: масло растительное | AM11: 3 | AU11: 3 | AW11: масло растительное | BG11: 0 | BI11: масло растительное | BK11: 3.6 | BS11: 3.6 | BU11: масло растительное | BV11: 19.6
A12: молоко свежее 0,9 | D12: 19 | F12: 100 | K12: 119 | M12: молоко свежее 0,9 | R12: 100 | W12: 100 | Y12: молоко свежее 0,9 | AI12: 0 | AK12: молоко свежее 0,9 | AM12: 6 | AN12: 23.7 | AO12: 100 | AU12: 129.7 | AW12: молоко свежее 0,9 | AZ12: 21 | BG12: 21 | BI12: молоко свежее 0,9 | BL12: 19 | BS12: 19 | BU12: молоко свежее 0,9 | BV12: 388.7
A13: сметана 0,5 | K13: 0 | M13: сметана 0,5 | W13: 0 | Y13: сметана 0,5 | AI13: 0 | AK13: сметана 0,5 | AU13: 0 | AW13: сметана 0,5 | BG13: 0 | BI13: сметана 0,5 | BS13: 0 | BU13: сметана 0,5 | BV13: 0
A14: сыр | K14: 0 | M14: сыр | W14: 0 | Y14: сыр | AI14: 0 | AK14: сыр | AU14: 0 | AW14: сыр | BG14: 0 | BI14: сыр | BS14: 0 | BU14: сыр | BV14: 0
A15: яйцо шт | K15: 0 | M15: яйцо шт | W15: 0 | Y15: яйцо шт | AI15: 0 | AK15: яйцо шт | AM15: 0.1 | AU15: 0.1 | AW15: яйцо шт | BG15: 0 | BI15: яйцо шт | BS15: 0 | BU15: яйцо шт | BV15: 0.1
A16: мука пшеничная | K16: 0 | M16: мука пшеничная | W16: 0 | Y16: мука пшеничная | AB16: 2.5 | AI16: 2.5 | AK16: мука пшеничная | AU16: 0 | AW16: мука пшеничная | BG16: 0 | BI16: мука пшеничная | BS16: 0 | BU16: мука пшеничная | BV16: 2.5
A17: крупа пшеничная | K17: 0 | M17: крупа пшеничная | W17: 0 | Y17: крупа пшеничная | AI17: 0 | AK17: крупа пшеничная | AU17: 0 | AW17: крупа пшеничная | BG17: 0 | BI17: крупа пшеничная | BS17: 0 | BU17: крупа пшеничная | BV17: 0
A18: крупа перловая | K18: 0 | M18: крупа перловая | W18: 0 | Y18: крупа перловая | AI18: 0 | AK18: крупа перловая | AU18: 0 | AW18: крупа перловая | BG18: 0 | BI18: крупа перловая | BS18: 0 | BU18: крупа перловая | BV18: 0
A19: крупа овянная-геркулес | K19: 0 | M19: крупа овянная-геркулес | W19: 0 | Y19: крупа овянная-геркулес | AI19: 0 | AK19: крупа овянная-геркулес | AU19: 0 | AW19: крупа овянная-геркулес | BG19: 0 | BI19: крупа овянная-геркулес | BS19: 0 | BU19: крупа овянная-геркулес | BV19: 0
A20: крупа гречневая | E20: 69 | K20: 69 | M20: крупа гречневая | W20: 0 | Y20: крупа гречневая | AI20: 0 | AK20: крупа гречневая | AU20: 0 | AW20: крупа гречневая | BG20: 0 | BI20: крупа гречневая | BS20: 0 | BU20: крупа гречневая | BV20: 69
A21: крупа манная | K21: 0 | M21: крупа манная | W21: 0 | Y21: крупа манная | AI21: 0 | AK21: крупа манная | AU21: 0 | AW21: крупа манная | BG21: 0 | BI21: крупа манная | BS21: 0 | BU21: крупа манная | BV21: 0
A22: крупа рисовая | K22: 0 | M22: крупа рисовая | P22: 46 | W22: 46 | Y22: крупа рисовая | AI22: 0 | AK22: крупа рисовая | AU22: 0 | AW22: крупа рисовая | BA22: 53.55 | BG22: 53.55 | BI22: крупа рисовая | BS22: 0 | BU22: крупа рисовая | BV22: 99.55
A23: пшено | K23: 0 | M23: пшено | W23: 0 | Y23: пшено | AI23: 0 | AK23: пшено | AU23: 0 | AW23: пшено | BG23: 0 | BI23: пшено | BS23: 0 | BU23: пшено | BV23: 0
A24: макаронные изделения | K24: 0 | M24: макаронные изделения | W24: 0 | Y24: макаронные изделения | AC24: 51 | AI24: 51 | AK24: макаронные изделения | AU24: 0 | AW24: макаронные изделения | BG24: 0 | BI24: макаронные изделения | BM24: 51 | BS24: 51 | BU24: макаронные изделения | BV24: 102
A25: горох | K25: 0 | M25: горох | W25: 0 | Y25: горох | AI25: 0 | AK25: горох | AU25: 0 | AW25: горох | BG25: 0 | BI25: горох | BS25: 0 | BU25: горох | BV25: 0
A26: сахарный песок | F26: 15 | K26: 15 | M26: сахарный песок | R26: 15 | W26: 15 | Y26: сахарный песок | Z26: 5 | AD26: 15 | AI26: 20 | AK26: сахарный песок | AL26: 5 | AO26: 15 | AU26: 20 | AW26: сахарный песок | BB26: 15 | BG26: 15 | BI26: сахарный песок | BN26: 15 | BS26: 15 | BU26: сахарный песок | BV26: 100
A27: сухофрукты | K27: 0 | M27: сухофрукты | W27: 0 | Y27: сухофрукты | AI27: 0 | AK27: сухофрукты | AU27: 0 | AW27: сухофрукты | BG27: 0 | BI27: сухофрукты | BS27: 0 | BU27: сухофрукты | BV27: 0
A28: томат паста 0,5 | K28: 0 | M28: томат паста 0,5 | P28: 7 | W28: 7 | Y28: томат паста 0,5 | AI28: 0 | AK28: томат паста 0,5 | AU28: 0 | AW28: томат паста 0,5 | BG28: 0 | BI28: томат паста 0,5 | BS28: 0 | BU28: томат паста 0,5 | BV28: 7
A29: картофель | K29: 0 | M29: картофель | W29: 0 | Y29: картофель | AI29: 0 | AK29: картофель | AN29: 171 | AU29: 171 | AW29: картофель | BG29: 0 | BI29: картофель | BS29: 0 | BU29: картофель | BV29: 171
A30: капуста свежая | K30: 0 | M30: капуста свежая | W30: 0 | Y30: капуста свежая | Z30: 98.6 | AI30: 98.6 | AK30: капуста свежая | AU30: 0 | AW30: капуста свежая | BG30: 0 | BI30: капуста свежая | BS30: 0 | BU30: капуста свежая | BV30: 98.6
A31: лук | K31: 0 | M31: лук | P31: 11 | W31: 11 | Y31: лук | AB31: 10 | AI31: 10 | AK31: лук | AM31: 20 | AU31: 20 | AW31: лук | BG31: 0 | BI31: лук | BS31: 0 | BU31: лук | BV31: 41
A32: морковь | K32: 0 | M32: морковь | P32: 16 | W32: 16 | Y32: морковь | Z32: 12.5 | AB32: 21 | AI32: 33.5 | AK32: морковь | AL32: 120 | AU32: 120 | AW32: морковь | BG32: 0 | BI32: морковь | BS32: 0 | BU32: морковь | BV32: 169.5
A33: огурцы соленые 3 л. | K33: 0 | M33: огурцы соленые 3 л. | W33: 0 | Y33: огурцы соленые 3 л. | AI33: 0 | AK33: огурцы соленые 3 л. | AU33: 0 | AW33: огурцы соленые 3 л. | BG33: 0 | BI33: огурцы соленые 3 л. | BS33: 0 | BU33: огурцы соленые 3 л. | BV33: 0
A34: горошек зел. консер. | K34: 0 | M34: горошек зел. консер. | W34: 0 | Y34: горошек зел. консер. | AI34: 0 | AK34: горошек зел. консер. | AU34: 0 | AW34: горошек зел. консер. | BG34: 0 | BI34: горошек зел. консер. | BS34: 0 | BU34: горошек зел. консер. | BV34: 0
A35: оргурцы свежие | K35: 0 | M35: оргурцы свежие | O35: 60 | W35: 60 | Y35: оргурцы свежие | AI35: 0 | AK35: оргурцы свежие | AU35: 0 | AW35: оргурцы свежие | BG35: 0 | BI35: оргурцы свежие | BK35: 71.3 | BS35: 71.3 | BU35: оргурцы свежие | BV35: 131.3
A36: помидоры свежие | B36: 60 | K36: 60 | M36: помидоры свежие | W36: 0 | Y36: помидоры свежие | AI36: 0 | AK36: помидоры свежие | AU36: 0 | AW36: помидоры свежие | AY36: 60 | BG36: 60 | BI36: помидоры свежие | BS36: 0 | BU36: помидоры свежие | BV36: 120
A37: свекла | K37: 0 | M37: свекла | W37: 0 | Y37: свекла | AI37: 0 | AK37: свекла | AU37: 0 | AW37: свекла | BG37: 0 | BI37: свекла | BS37: 0 | BU37: свекла | BV37: 0
A38: соль | D38: 2 | E38: 2 | K38: 4 | M38: соль | P38: 2 | W38: 2 | Y38: соль | Z38: 1 | AB38: 2 | AC38: 4 | AI38: 7 | AK38: соль | AM38: 2 | AN38: 2 | AU38: 4 | AW38: соль | AZ38: 2 | BA38: 1.5 | BG38: 3.5 | BI38: соль | BK38: 1 | BL38: 2 | BM38: 4 | BS38: 7 | BU38: соль | BV38: 27.5
A39: хлеб пшен | D39: 14 | G39: 30 | K39: 44 | M39: хлеб пшен | S39: 30 | W39: 30 | Y39: хлеб пшен | AE39: 30 | AI39: 30 | AK39: хлеб пшен | AP39: 30 | AU39: 30 | AW39: хлеб пшен | AZ39: 15 | BC39: 30 | BG39: 45 | BI39: хлеб пшен | BL39: 14 | BO39: 30 | BS39: 44 | BU39: хлеб пшен | BV39: 223
A40: хлеб ржан | G40: 20 | K40: 20 | M40: хлеб ржан | S40: 20 | W40: 20 | Y40: хлеб ржан | AE40: 20 | AI40: 20 | AK40: хлеб ржан | AP40: 20 | AU40: 20 | AW40: хлеб ржан | BC40: 20 | BG40: 20 | BI40: хлеб ржан | BO40: 20 | BS40: 20 | BU40: хлеб ржан | BV40: 120
A41: какао - порошок | F41: 3.2 | K41: 3.2 | M41: какао - порошок | W41: 0 | Y41: какао - порошок | AI41: 0 | AK41: какао - порошок | AO41: 3.2 | AU41: 3.2 | AW41: какао - порошок | BG41: 0 | BI41: какао - порошок | BS41: 0 | BU41: какао - порошок | BV41: 6.4
A42: кофейный напиток | K42: 0 | M42: кофейный напиток | R42: 2.6 | W42: 2.6 | Y42: кофейный напиток | AI42: 0 | AK42: кофейный напиток | AU42: 0 | AW42: кофейный напиток | BG42: 0 | BI42: кофейный напиток | BS42: 0 | BU42: кофейный напиток | BV42: 2.6
A43: чай | K43: 0 | M43: чай | W43: 0 | Y43: чай | AD43: 1 | AI43: 1 | AK43: чай | AU43: 0 | AW43: чай | BB43: 1 | BG43: 1 | BI43: чай | BN43: 1 | BS43: 1 | BU43: чай | BV43: 3
A44: сок по 0,2 в шт | K44: 0 | M44: сок по 0,2 в шт | W44: 0 | Y44: сок по 0,2 в шт | AI44: 0 | AK44: сок по 0,2 в шт | AU44: 0 | AW44: сок по 0,2 в шт | BG44: 0 | BI44: сок по 0,2 в шт | BS44: 0 | BU44: сок по 0,2 в шт | BV44: 0
A45: апельс | K45: 0 | M45: апельс | W45: 0 | Y45: апельс | AI45: 0 | AK45: апельс | AU45: 0 | AW45: апельс | BG45: 0 | BI45: апельс | BS45: 0 | BU45: апельс | BV45: 0
A46: банан | K46: 0 | M46: банан | W46: 0 | Y46: банан | AI46: 0 | AK46: банан | AU46: 0 | AW46: банан | BG46: 0 | BI46: банан | BS46: 0 | BU46: банан | BV46: 0
A47: яблоки | K47: 0 | M47: яблоки | N47: 110 | W47: 110 | Y47: яблоки | AI47: 0 | AK47: яблоки | AU47: 0 | AW47: яблоки | AX47: 110 | BG47: 110 | BI47: яблоки | BS47: 0 | BU47: яблоки | BV47: 220
A48: лимон | K48: 0 | M48: лимон | W48: 0 | Y48: лимон | AI48: 0 | AK48: лимон | AU48: 0 | AW48: лимон | BB48: 8 | BG48: 8 | BI48: лимон | BS48: 0 | BU48: лимон | BV48: 8
A49: груши | K49: 0 | M49: груши | W49: 0 | Y49: груши | AI49: 0 | AK49: груши | AQ49: 100 | AU49: 100 | AW49: груши | BG49: 0 | BI49: груши | BS49: 0 | BU49: груши | BV49: 100
A50: мандарины | K50: 0 | M50: мандарины | W50: 0 | Y50: мандарины | AI50: 0 | AK50: мандарины | AU50: 0 | AW50: мандарины | BG50: 0 | BI50: мандарины | BJ50: 100 | BS50: 100 | BU50: мандарины | BV50: 100
A51: куры охлажден. | K51: 0 | M51: куры охлажден. | P51: 236 | W51: 236 | Y51: куры охлажден. | AI51: 0 | AK51: куры охлажден. | AU51: 0 | AW51: куры охлажден. | AZ51: 98 | BG51: 98 | BI51: куры охлажден. | BS51: 0 | BU51: куры охлажден. | BV51: 334
A52: творог | K52: 0 | M52: творог | W52: 0 | Y52: творог | AI52: 0 | AK52: творог | AU52: 0 | AW52: творог | BG52: 0 | BI52: творог | BS52: 0 | BU52: творог | BV52: 0
A53: повидло | K53: 0 | M53: повидло | W53: 0 | Y53: повидло | AI53: 0 | AK53: повидло | AU53: 0 | AW53: повидло | BG53: 0 | BI53: повидло | BS53: 0 | BU53: повидло | BV53: 0
A54: сухари | D54: 8 | K54: 8 | M54: сухари | W54: 0 | Y54: сухари | AI54: 0 | AK54: сухари | AM54: 10 | AU54: 10 | AW54: сухари | AZ54: 8 | BG54: 8 | BI54: сухари | BL54: 8 | BS54: 8 | BU54: сухари | BV54: 34
A56: 2 НЕДЕЛЯ
A57: Накопительная ведомость | F57: Утверждаю: | M57: Накопительная ведомость | R57: Утверждаю: | Y57: Накопительная ведомость | AD57: Утверждаю: | AK57: Накопительная ведомость | AP57: Утверждаю: | AW57: Накопительная ведомость | BB57: Утверждаю: | BI57: Накопительная ведомость | BN57: Утверждаю:
A58: на выдачу продуктов питания | E58: Руководитель учреждения ______________________________ | M58: на выдачу продуктов питания | Q58: Руководитель учреждения ______________________________ | Y58: на выдачу продуктов питания | AC58: Руководитель учреждения ______________________________ | AK58: на выдачу продуктов питания | AO58: Руководитель учреждения ______________________________ | AW58: на выдачу продуктов питания | BA58: Руководитель учреждения ______________________________ | BI58: на выдачу продуктов питания | BM58: Руководитель учреждения ______________________________
E59: на 1 день, на 1 человека | Q59: на 2 день, на 1 человека | AC59: на 3 день, на 1 человека | AO59: на 4 день, на 1 человека | BA59: на 5 день, на 1 человека | BM59: на 6 день, на 1 человека
A61: МЕНЮ | B61: количество продуктов питания подлежащих закладке | K61: итого | M61: МЕНЮ | N61: количество продуктов питания подлежащих закладке | W61: итого | Y61: МЕНЮ | Z61: количество продуктов питания подлежащих закладке | AI61: итого | AK61: МЕНЮ | AL61: количество продуктов питания подлежащих закладке | AU61: итого | AW61: МЕНЮ | AX61: количество продуктов питания подлежащих закладке | BG61: итого | BI61: МЕНЮ | BJ61: количество продуктов питания подлежащих закладке | BS61: итого | BU61: итого за 1 неделю
B62: фрукты | C62: огурцы свеж | D62: мясо тушеное | E62: каша гречнев | F62: какао с мол | G62: хлеб | N62: помидоры свеж | P62: плов из птицы | R62: чай с сах.лим | S62: хлеб | Z62: фрукты | AA62: салат из капусты | AB62: шницель рыбный | AC62: картоф. пюре | AD62: чай с сахаром | AE62: хлеб | AL62: фрукты | AM62: салат из моркови | AN62: тефтели мясные | AO62: макароны отвар | AP62: кофейн напиток | AQ62: хлеб | AX62: фрукты | AY62: свекла отварная | AZ62: запеканка карт с мясом | BA62: чай с сах.лим | BB62: хлеб | BJ62: салат их св.огур | BK62: сосиски отварные | BL62: рис отварной | BM62: чай с сахаром | BN62: хлеб
A63: мясо | D63: 113 | K63: =SUM(B63:J63) -> 113 | M63: мясо | W63: =SUM(N63:V63) -> 0 | Y63: мясо | AI63: =SUM(Z63:AH63) -> 0 | AK63: мясо | AN63: 52 | AU63: =SUM(AL63:AT63) -> 52 | AW63: мясо | AZ63: 90 | BG63: =SUM(AX63:BF63) -> 90 | BI63: мясо | BS63: =SUM(BJ63:BR63) -> 0 | BU63: мясо | BV63: =K63+W63+AI63+AU63+BG63+BS63 -> 255
A64: колбасные изделия | K64: 0 | M64: колбасные изделия | W64: 0 | Y64: колбасные изделия | AI64: 0 | AK64: колбасные изделия | AU64: 0 | AW64: колбасные изделия | BG64: 0 | BI64: колбасные изделия | BK64: 81 | BS64: 81 | BU64: колбасные изделия | BV64: 81
A65: рыба свежая | K65: 0 | M65: рыба свежая | W65: 0 | Y65: рыба свежая | AB65: 98.5 | AI65: 98.5 | AK65: рыба свежая | AU65: 0 | AW65: рыба свежая | BG65: 0 | BI65: рыба свежая | BS65: 0 | BU65: рыба свежая | BV65: 98.5
A66: масло сливочное | E66: 5 | K66: 5 | M66: масло сливочное | W66: 0 | Y66: масло сливочное | AC66: 5 | AI66: 5 | AK66: масло сливочное | AN66: 4 | AO66: 5 | AU66: 9 | AW66: масло сливочное | AZ66: 10.3 | BG66: 10.3 | BI66: масло сливочное | BL66: 6.7 | BS66: 6.7 | BU66: масло сливочное | BV66: 36
A67: масло растительное | D67: 5 | K67: 5 | M67: масло растительное | P67: 8 | W67: 8 | Y67: масло растительное | AA67: 5 | AB67: 3 | AI67: 8 | AK67: масло растительное | AU67: 0 | AW67: масло растительное | AY67: 3.6 | BG67: 3.6 | BI67: масло растительное | BJ67: 3.6 | BS67: 3.6 | BU67: масло растительное | BV67: 28.2
A68: молоко свежее 0,9 | F68: 100 | K68: 100 | M68: молоко свежее 0,9 | W68: 0 | Y68: молоко свежее 0,9 | AB68: 6 | AC68: 23.7 | AI68: 29.7 | AK68: молоко свежее 0,9 | AP68: 100 | AU68: 100 | AW68: молоко свежее 0,9 | BG68: 0 | BI68: молоко свежее 0,9 | BS68: 0 | BU68: молоко свежее 0,9 | BV68: 229.7
A69: сметана 0,5 | K69: 0 | M69: сметана 0,5 | W69: 0 | Y69: сметана 0,5 | AI69: 0 | AK69: сметана 0,5 | AN69: 15 | AU69: 15 | AW69: сметана 0,5 | BG69: 0 | BI69: сметана 0,5 | BS69: 0 | BU69: сметана 0,5 | BV69: 15
A70: сыр | K70: 0 | M70: сыр | W70: 0 | Y70: сыр | AI70: 0 | AK70: сыр | AU70: 0 | AW70: сыр | BG70: 0 | BI70: сыр | BS70: 0 | BU70: сыр | BV70: 0
A71: яйцо шт | K71: 0 | M71: яйцо шт | W71: 0 | Y71: яйцо шт | AB71: 0.1 | AI71: 0.1 | AK71: яйцо шт | AU71: 0 | AW71: яйцо шт | BG71: 0 | BI71: яйцо шт | BS71: 0 | BU71: яйцо шт | BV71: 0.1
A72: мука пшеничная | D72: 2 | K72: 2 | M72: мука пшеничная | W72: 0 | Y72: мука пшеничная | AI72: 0 | AK72: мука пшеничная | AN72: 8.5 | AU72: 8.5 | AW72: мука пшеничная | BG72: 0 | BI72: мука пшеничная | BS72: 0 | BU72: мука пшеничная | BV72: 10.5
A73: крупа пшеничная | K73: 0 | M73: крупа пшеничная | W73: 0 | Y73: крупа пшеничная | AI73: 0 | AK73: крупа пшеничная | AU73: 0 | AW73: крупа пшеничная | BG73: 0 | BI73: крупа пшеничная | BS73: 0 | BU73: крупа пшеничная | BV73: 0
A74: крупа перловая | K74: 0 | M74: крупа перловая | W74: 0 | Y74: крупа перловая | AI74: 0 | AK74: крупа перловая | AU74: 0 | AW74: крупа перловая | BG74: 0 | BI74: крупа перловая | BS74: 0 | BU74: крупа перловая | BV74: 0
A75: крупа овянная-геркулес | K75: 0 | M75: крупа овянная-геркулес | W75: 0 | Y75: крупа овянная-геркулес | AI75: 0 | AK75: крупа овянная-геркулес | AU75: 0 | AW75: крупа овянная-геркулес | BG75: 0 | BI75: крупа овянная-геркулес | BS75: 0 | BU75: крупа овянная-геркулес | BV75: 0
A76: крупа гречневая | E76: 69 | K76: 69 | M76: крупа гречневая | W76: 0 | Y76: крупа гречневая | AI76: 0 | AK76: крупа гречневая | AU76: 0 | AW76: крупа гречневая | BG76: 0 | BI76: крупа гречневая | BS76: 0 | BU76: крупа гречневая | BV76: 69
A77: крупа манная | K77: 0 | M77: крупа манная | W77: 0 | Y77: крупа манная | AI77: 0 | AK77: крупа манная | AU77: 0 | AW77: крупа манная | BG77: 0 | BI77: крупа манная | BS77: 0 | BU77: крупа манная | BV77: 0
A78: крупа рисовая | K78: 0 | M78: крупа рисовая | P78: 46 | W78: 46 | Y78: крупа рисовая | AI78: 0 | AK78: крупа рисовая | AN78: 5 | AU78: 5 | AW78: крупа рисовая | BG78: 0 | BI78: крупа рисовая | BL78: 53.55 | BS78: 53.55 | BU78: крупа рисовая | BV78: 104.55
A79: пшено | K79: 0 | M79: пшено | W79: 0 | Y79: пшено | AI79: 0 | AK79: пшено | AU79: 0 | AW79: пшено | BG79: 0 | BI79: пшено | BS79: 0 | BU79: пшено | BV79: 0
A80: макаронные изделения | K80: 0 | M80: макаронные изделения | W80: 0 | Y80: макаронные изделения | AI80: 0 | AK80: макаронные изделения | AO80: 51 | AU80: 51 | AW80: макаронные изделения | BG80: 0 | BI80: макаронные изделения | BS80: 0 | BU80: макаронные изделения | BV80: 51
A81: горох | K81: 0 | M81: горох | W81: 0 | Y81: горох | AI81: 0 | AK81: горох | AU81: 0 | AW81: горох | BG81: 0 | BI81: горох | BS81: 0 | BU81: горох | BV81: 0
A82: сахарный песок | F82: 15 | K82: 15 | M82: сахарный песок | R82: 15 | W82: 15 | Y82: сахарный песок | AA82: 5 | AD82: 15 | AI82: 20 | AK82: сахарный песок | AM82: 5 | AP82: 15 | AU82: 20 | AW82: сахарный песок | BA82: 15 | BG82: 15 | BI82: сахарный песок | BM82: 15 | BS82: 15 | BU82: сахарный песок | BV82: 100
A83: сухофрукты | K83: 0 | M83: сухофрукты | W83: 0 | Y83: сухофрукты | AI83: 0 | AK83: сухофрукты | AU83: 0 | AW83: сухофрукты | BG83: 0 | BI83: сухофрукты | BS83: 0 | BU83: сухофрукты | BV83: 0
A84: томат паста 0,5 | D84: 7 | K84: 7 | M84: томат паста 0,5 | P84: 7 | W84: 7 | Y84: томат паста 0,5 | AI84: 0 | AK84: томат паста 0,5 | AU84: 0 | AW84: томат паста 0,5 | BG84: 0 | BI84: томат паста 0,5 | BS84: 0 | BU84: томат паста 0,5 | BV84: 14
A85: картофель | K85: 0 | M85: картофель | W85: 0 | Y85: картофель | AC85: 171 | AI85: 171 | AK85: картофель | AU85: 0 | AW85: картофель | AZ85: 255 | BG85: 255 | BI85: картофель | BS85: 0 | BU85: картофель | BV85: 426
A86: капуста свежая | K86: 0 | M86: капуста свежая | W86: 0 | Y86: капуста свежая | AA86: 98.6 | AI86: 98.6 | AK86: капуста свежая | AU86: 0 | AW86: капуста свежая | BG86: 0 | BI86: капуста свежая | BS86: 0 | BU86: капуста свежая | BV86: 98.6
A87: лук | D87: 5 | K87: 5 | M87: лук | P87: 11 | W87: 11 | Y87: лук | AB87: 20 | AI87: 20 | AK87: лук | AN87: 13 | AU87: 13 | AW87: лук | AZ87: 16.25 | BG87: 16.25 | BI87: лук | BS87: 0 | BU87: лук | BV87: 65.25
A88: морковь | D88: 5 | K88: 5 | M88: морковь | P88: 16 | W88: 16 | Y88: морковь | AA88: 12.5 | AI88: 12.5 | AK88: морковь | AM88: 120 | AU88: 120 | AW88: морковь | BG88: 0 | BI88: морковь | BS88: 0 | BU88: морковь | BV88: 153.5
A89: огурцы соленые 3 л. | K89: 0 | M89: огурцы соленые 3 л. | W89: 0 | Y89: огурцы соленые 3 л. | AI89: 0 | AK89: огурцы соленые 3 л. | AU89: 0 | AW89: огурцы соленые 3 л. | BG89: 0 | BI89: огурцы соленые 3 л. | BS89: 0 | BU89: огурцы соленые 3 л. | BV89: 0
A90: горошек зел. консер. | K90: 0 | M90: горошек зел. консер. | W90: 0 | Y90: горошек зел. консер. | AI90: 0 | AK90: горошек зел. консер. | AU90: 0 | AW90: горошек зел. консер. | BG90: 0 | BI90: горошек зел. консер. | BS90: 0 | BU90: горошек зел. консер. | BV90: 0
A91: оргурцы свежие | C91: 60 | K91: 60 | M91: оргурцы свежие | W91: 0 | Y91: оргурцы свежие | AI91: 0 | AK91: оргурцы свежие | AU91: 0 | AW91: оргурцы свежие | BG91: 0 | BI91: оргурцы свежие | BJ91: 71.3 | BS91: 71.3 | BU91: оргурцы свежие | BV91: 131.3
A92: помидоры свежие | K92: 0 | M92: помидоры свежие | N92: 60 | W92: 60 | Y92: помидоры свежие | AI92: 0 | AK92: помидоры свежие | AU92: 0 | AW92: помидоры свежие | BG92: 0 | BI92: помидоры свежие | BS92: 0 | BU92: помидоры свежие | BV92: 60
A93: свекла | K93: 0 | M93: свекла | W93: 0 | Y93: свекла | AI93: 0 | AK93: свекла | AU93: 0 | AW93: свекла | AY93: 72.96 | BG93: 72.96 | BI93: свекла | BS93: 0 | BU93: свекла | BV93: 72.96
A94: соль | D94: 2 | E94: 2 | K94: 4 | M94: соль | P94: 2 | W94: 2 | Y94: соль | AA94: 1 | AB94: 2 | AC94: 2 | AI94: 5 | AK94: соль | AN94: 2 | AO94: 4 | AU94: 6 | AW94: соль | AY94: 1 | AZ94: 2 | BG94: 3 | BI94: соль | BJ94: 1 | BL94: 1.5 | BS94: 2.5 | BU94: соль | BV94: 22.5
A95: хлеб пшен | G95: 30 | K95: 30 | M95: хлеб пшен | S95: 30 | W95: 30 | Y95: хлеб пшен | AE95: 30 | AI95: 30 | AK95: хлеб пшен | AQ95: 30 | AU95: 30 | AW95: хлеб пшен | BB95: 30 | BG95: 30 | BI95: хлеб пшен | BN95: 30 | BS95: 30 | BU95: хлеб пшен | BV95: 180
A96: хлеб ржан | G96: 20 | K96: 20 | M96: хлеб ржан | S96: 20 | W96: 20 | Y96: хлеб ржан | AE96: 20 | AI96: 20 | AK96: хлеб ржан | AQ96: 20 | AU96: 20 | AW96: хлеб ржан | BB96: 20 | BG96: 20 | BI96: хлеб ржан | BN96: 20 | BS96: 20 | BU96: хлеб ржан | BV96: 120
A97: какао - порошок | F97: 3.2 | K97: 3.2 | M97: какао - порошок | W97: 0 | Y97: какао - порошок | AI97: 0 | AK97: какао - порошок | AU97: 0 | AW97: какао - порошок | BG97: 0 | BI97: какао - порошок | BS97: 0 | BU97: какао - порошок | BV97: 3.2
A98: кофейный напиток | K98: 0 | M98: кофейный напиток | W98: 0 | Y98: кофейный напиток | AI98: 0 | AK98: кофейный напиток | AP98: 2.6 | AU98: 2.6 | AW98: кофейный напиток | BG98: 0 | BI98: кофейный напиток | BS98: 0 | BU98: кофейный напиток | BV98: 2.6
A99: чай | K99: 0 | M99: чай | R99: 1 | W99: 1 | Y99: чай | AD99: 1 | AI99: 1 | AK99: чай | AU99: 0 | AW99: чай | BA99: 1 | BG99: 1 | BI99: чай | BM99: 1 | BS99: 1 | BU99: чай | BV99: 4
A100: сок по 0,2 в шт | K100: 0 | M100: сок по 0,2 в шт | W100: 0 | Y100: сок по 0,2 в шт | AI100: 0 | AK100: сок по 0,2 в шт | AU100: 0 | AW100: сок по 0,2 в шт | BG100: 0 | BI100: сок по 0,2 в шт | BS100: 0 | BU100: сок по 0,2 в шт | BV100: 0
A101: апельс | B101: 150 | K101: 150 | M101: апельс | W101: 0 | Y101: апельс | AI101: 0 | AK101: апельс | AU101: 0 | AW101: апельс | BG101: 0 | BI101: апельс | BS101: 0 | BU101: апельс | BV101: 150
A102: банан | K102: 0 | M102: банан | W102: 0 | Y102: банан | AI102: 0 | AK102: банан | AU102: 0 | AW102: банан | AX102: 150 | BG102: 150 | BI102: банан | BS102: 0 | BU102: банан | BV102: 150
A103: яблоки | K103: 0 | M103: яблоки | W103: 0 | Y103: яблоки | AI103: 0 | AK103: яблоки | AL103: 110 | AU103: 110 | AW103: яблоки | BG103: 0 | BI103: яблоки | BS103: 0 | BU103: яблоки | BV103: 110
A104: лимон | K104: 0 | M104: лимон | R104: 8 | W104: 8 | Y104: лимон | AI104: 0 | AK104: лимон | AU104: 0 | AW104: лимон | BA104: 8 | BG104: 8 | BI104: лимон | BS104: 0 | BU104: лимон | BV104: 16
A105: груши | K105: 0 | M105: груши | W105: 0 | Y105: груши | Z105: 100 | AI105: 100 | AK105: груши | AU105: 0 | AW105: груши | BG105: 0 | BI105: груши | BS105: 0 | BU105: груши | BV105: 100
A106: мандарины | K106: 0 | M106: мандарины | W106: 0 | Y106: мандарины | AI106: 0 | AK106: мандарины | AU106: 0 | AW106: мандарины | BG106: 0 | BI106: мандарины | BS106: 0 | BU106: мандарины | BV106: 0
A107: куры охлажден. | K107: 0 | M107: куры охлажден. | P107: 236 | W107: 236 | Y107: куры охлажден. | AI107: 0 | AK107: куры охлажден. | AU107: 0 | AW107: куры охлажден. | BG107: 0 | BI107: куры охлажден. | BS107: 0 | BU107: куры охлажден. | BV107: 236
A108: творог | K108: 0 | M108: творог | W108: 0 | Y108: творог | AI108: 0 | AK108: творог | AU108: 0 | AW108: творог | BG108: 0 | BI108: творог | BS108: 0 | BU108: творог | BV108: 0
A109: повидло | K109: 0 | M109: повидло | W109: 0 | Y109: повидло | AI109: 0 | AK109: повидло | AU109: 0 | AW109: повидло | BG109: 0 | BI109: повидло | BS109: 0 | BU109: повидло | BV109: 0
A110: сухари | K110: 0 | M110: сухари | W110: 0 | Y110: сухари | AB110: 10 | AI110: 10 | AK110: сухари | AU110: 0 | AW110: сухари | AZ110: 4 | BG110: 4 | BI110: сухари | BS110: 0 | BU110: сухари | BV110: 14

Sheet Накопительная (hidden)
A2: Накопительная ведомость | I2: Утверждаю:
A3: на выдачу продуктов питания | H3: Руководитель учреждения ______________________________
A4: платное питание | H4: за 12 дней на 1ребенка
A6: МЕНЮ | B6: цена | C6: количество продуктов питания подлежащих закладке | O6: итого за 12 дней | P6: стоим. на 1 чел
C7: день 1 | D7: день 2 | E7: день 3 | F7: день 4 | G7: день 5 | H7: день 6 | I7: день 7 | J7: день 8 | K7: день 9 | L7: день 10 | M7: день 11 | N7: день 12 | Q7: среднее
A8: мясо | B8: 299.07 | C8: 80 | E8: 110 | H8: 80 | I8: 90.4 | L8: 52 | M8: 90 | O8: =SUM(C8:N8) -> 502.4 | P8: =O8*B8/1000 -> 150.25 | Q8: =O8/12 -> 41.87
A9: сосиски | B9: 255.33 | N9: 81 | O9: 81 | P9: =O9*B9/1000 -> 20.68 | Q9: 6.75
A10: рыба свежая | B10: 158.55 | F10: 98.5 | K10: 98.5 | O10: 197 | P10: =O10*B10/1000 -> 31.23 | Q10: 16.42
A11: масло сливочное | B11: 485.14 | C11: 10 | E11: 8.3 | F11: 5 | G11: 9.7 | H11: 10 | I11: 5 | K11: 5 | L11: 9 | M11: 10.3 | N11: 6.7 | O11: 79 | P11: =O11*B11/1000 -> 38.33 | Q11: 6.58
A12: масло растительное 1 л. | B12: 79.94 | D12: 8 | E12: 5 | F12: 3 | H12: 3.6 | I12: 5 | J12: 8 | K12: 8 | M12: 3.6 | N12: 3.6 | O12: 47.8 | P12: =O12*B12/900 -> 4.25 | Q12: 3.98
A13: молоко свежее 1 л. | B13: 51.71 | C13: 119 | D13: 100 | F13: 129.7 | G13: 21 | H13: 19 | I13: 100 | K13: 29.7 | L13: 100 | O13: 618.4 | P13: =O13*B13/1000 -> 31.98 | Q13: 51.53
A14: сметана 1 кг. | L14: 15 | O14: 15 | P14: =O14*B14/1000 -> 0.00 | Q14: 1.25
A15: сыр | O15: 0 | P15: =O15*B15/1000 -> 0.00 | Q15: 0.00
A16: яйцо шт | B16: 5.49 | F16: 0.1 | K16: 0.1 | O16: 0.2 | P16: =O16*B16 -> 1.10 | Q16: 0.02
A17: мука пшеничная | B17: 30.12 | E17: 2.5 | I17: 2 | L17: 8.5 | O17: 13 | P17: =O17*B17/1000 -> 0.39 | Q17: 1.08
A18: крупа пшенична | B18: 27.5 | O18: 0 | P18: 0.00 | Q18: 0.00
A19: крупа перловая | B19: 29.13 | O19: 0 | P19: 0.00 | Q19: 0.00
A20: крупа овянная-геркулес | O20: 0 | P20: 0.00 | Q20: 0.00
A21: крупа гречневая | B21: 70.71 | C21: 69 | I21: 69 | O21: 138 | P21: 9.76 | Q21: 11.50
A22: крупа манная | O22: 0 | P22: 0.00 | Q22: 0.00
A23: крупа рисовая | B23: 63.43 | D23: 46 | G23: 53.55 | J23: 46 | L23: 5 | N23: 53.55 | O23: 204.1 | P23: 12.95 | Q23: 17.01
A24: пшено | O24: 0 | P24: 0.00 | Q24: 0.00
A25: макаронные изделения | B25: 40.73 | E25: 51 | H25: 51 | L25: 51 | O25: 153 | P25: 6.23 | Q25: 12.75
A26: горох | O26: 0 | P26: 0.00 | Q26: 0.00
A27: сахарный песок | B27: 32.29 | C27: 15 | D27: 15 | E27: 20 | F27: 20 | G27: 15 | H27: 15 | I27: 15 | J27: 15 | K27: 20 | L27: 20 | M27: 15 | N27: 15 | O27: 200 | P27: 6.46 | Q27: 16.67
A28: сухофрукты | O28: 0 | P28: 0.00 | Q28: 0.00
A29: томат паста 0,5 | B29: 55.94 | D29: 7 | I29: 7 | J29: 7 | O29: 21 | P29: =O29*B29/500 -> 2.35 | Q29: 1.75
A30: картофель | B30: 29.03 | F30: 171 | K30: 171 | M30: 255 | O30: 597 | P30: =O30*B30/1000 -> 17.33 | Q30: 49.75
A31: капуста свежая | B31: 23.59 | E31: 98.6 | K31: 98.6 | O31: 197.2 | P31: =O31*B31/1000 -> 4.65 | Q31: 16.43
A32: лук | B32: 32.84 | D32: 11 | E32: 10 | F32: 20 | I32: 5 | J32: 11 | K32: 20 | L32: 13 | M32: 16.25 | O32: 106.25 | P32: =O32*B32/1000 -> 3.49 | Q32: 8.85
A33: морковь | B33: 33.84 | D33: 16 | E33: 33.5 | F33: 120 | I33: 5 | J33: 16 | K33: 12.5 | L33: 120 | O33: 323 | P33: =O33*B33/1000 -> 10.93 | Q33: 26.92
A34: огурцы соленые 3 л. | O34: 0 | P34: =O34*B34/425 -> 0.00 | Q34: 0.00
A35: зеленый горошек | O35: 0 | P35: =O35*B35/1000 -> 0.00 | Q35: 0.00
A36: огурцы свеж | B36: 73.57 | D36: 60 | H36: 71.3 | I36: 60 | N36: 71.3 | O36: 262.6 | P36: 19.32 | Q36: 21.88
A37: помидор свеж | B37: 119.4 | C37: 60 | G37: 60 | J37: 60 | O37: 180 | P37: 21.49 | Q37: 15.00
A38: свекла | B38: 39.18 | M38: 72.96 | O38: 72.96 | P38: 2.86 | Q38: 6.08
A39: соль | B39: 10.64 | C39: 4 | D39: 2 | E39: 7 | F39: 4 | G39: 3.5 | H39: 7 | I39: 4 | J39: 2 | K39: 5 | L39: 6 | M39: 3 | N39: 3 | O39: 50.5 | P39: 0.54 | Q39: 4.21
A40: хлеб бух.500 | B40: 27.4 | C40: 44 | D40: 30 | E40: 30 | F40: 30 | G40: 45 | H40: 44 | I40: 30 | J40: 30 | K40: 30 | L40: 30 | M40: 30 | N40: 30 | O40: =SUM(C40:N40) -> 403 | P40: 11.04 | Q40: =O40/12 -> 33.58
A41: хлеб ржан 500 | B41: 23.14 | C41: 20 | D41: 20 | E41: 20 | F41: 20 | G41: 20 | H41: 20 | I41: 20 | J41: 20 | K41: 20 | L41: 20 | M41: 20 | N41: 20 | O41: 240 | P41: 5.55 | Q41: 20.00
A42: какао 250 г. | B42: 48 | C42: 3.2 | F42: 3.2 | I42: 3.2 | O42: 9.6 | P42: 0.46 | Q42: 0.80
A43: кофейный напиток | B43: 102.02 | D43: 2.6 | L43: 2.6 | O43: 5.2 | P43: 0.53 | Q43: 0.43
A44: чай 100 г. | B44: 61.54 | E44: 1 | G44: 1 | H44: 1 | J44: 1 | K44: 1 | M44: 1 | N44: 1 | O44: 7 | P44: 0.43 | Q44: 0.58
A45: сок по 0,2 в шт | O45: 0 | P45: =O45*B45 -> 0.00 | Q45: 0.00
A46: конф | O46: 0 | P46: =O46*B46/1000 -> 0.00 | Q46: 0.00
A47: печенье | O47: 0 | P47: 0.00 | Q47: 0.00
A48: вафли | O48: 0 | P48: 0.00 | Q48: 0.00
A49: апельс | B49: 89.33 | I49: 150 | O49: 150 | P49: 13.40 | Q49: 12.50
A50: банан | B50: 72.18 | M50: 150 | O50: 150 | P50: 10.83 | Q50: 12.50
A51: яблоки | B51: 94.18 | D51: 140 | G51: 140 | L51: 150 | O51: 430 | P51: 40.50 | Q51: 35.83
A52: лимон | B52: 130.6 | G52: 8 | J52: 8 | M52: 8 | O52: 24 | P52: 3.13 | Q52: 2.00
A53: груши | B53: 122.68 | F53: 100 | K53: 100 | O53: 200 | P53: 24.54 | Q53: 16.67
A54: мандарины | B54: 131.21 | H54: 100 | O54: 100 | P54: 13.12 | Q54: 8.33
A55: куры охлажден. | B55: 132.26 | D55: 236 | G55: 98 | J55: 236 | O55: 570 | P55: 75.39 | Q55: 47.50
A56: творог | O56: 0 | P56: 0.00 | Q56: 0.00
A57: повидло | O57: 0 | P57: 0.00 | Q57: 0.00
A58: сухари панировочные | B58: 70.62 | C58: 8 | F58: 10 | G58: 8 | H58: 8 | K58: 10 | M58: 4 | O58: 48 | P58: 3.39 | Q58: 4.00
A61: стоимость одного дня | C61: =C8*$B8/1000+C9*$B9/1000+C10*$B10/1000+C11*$B11/1000+C12*$B12/1000+C13*$B13/1000+C14*$B14/1000+C15*$B15/1000+C16*$B16+C17*$B17/1000+C18*$B18/1000+C19*$B19/1000+C20*$B20/1000+C21*$B21/1000+C22*$B22/1000+C23*$B23/1000+C24*$B24/1000+C25*$B25/1000+C26*$B26/1000+C27*$B27/1000+C28*$B28/1000+C29*$B29/500+C30*$B30/1000+C31*$B31/1000+C32*$B32/1000+C33*$B33/1000+C34*$B34/3000+C35*$B35/425+C36*$B36/1000+C37*$B37/1000+C38*$B38/1000+C39*$B39/1000+C40*$B40/500+C41*$B41/500+C42*$B42/250+C43*$B43/250+C44*$B44/100+C45*$B45+C47*$B47/1000+C48*$B48/1000+C49*$B49/1000+C50*$B50/1000+C51*$B51/1000+C52*$B52/1000+C53*$B53/1000+C54*$B54/1000+C55*$B55/1000+C56*$B56/1000+C57*$B57/1000+C58*$B58/1000 -> 52.02 | D61: 63.36 | E61: 47.17 | F61: 52.07 | G61: 48.64 | H61: 55.57 | I61: 62.61 | J61: 48.36 | K61: 46.00 | L61: 50.69 | M61: 58.85 | N61: 36.56 | P61: =SUM(B61:N61)/12 -> 51.8
C63: 1 | D63: 2 | E63: 3 | F63: 4 | G63: 5 | H63: 6 | I63: 7 | J63: 8 | K63: 9 | L63: 10 | M63: 11 | N63: 12
H65: =(C61+D61+E61+F61+G61+H61)/6 -> 53.14 | N65: =(I61+J61+K61+L61+M61+N61)/6 -> 50.51 | P65: =(H65+N65)/2 -> 51.82
